fUST/lending_fUST_20250214
["ID","MTS","AMOUNT","RATE_DAILY","PERIOD"]
[353035810,1739503832564,-500.0,0.00013698,2]
[353035811,1739503832575,-500.0,0.00013698,2]
[353035812,1739503832584,-2143.12,0.00013698,2]
[353035813,1739503832597,-500.0,0.00013698,2]
[353035814,1739503832607,-500.0,0.00013698,2]
[353035815,1739503832617,-500.0,0.00013698,2]
[353035816,1739503832626,-500.0,0.00013698,2]
[353035817,1739503832637,-500.0,0.00013698,2]
[353035818,1739503832647,-500.0,0.00013698,2]
[353035819,1739503832657,-500.0,0.00013698,2]
[353035820,1739503832667,-1032.44,0.00013698,2]
[353035821,1739503832677,-500.0,0.00013698,2]
[353035822,1739503832686,-4206.49,0.00013698,2]
[353035823,1739503832696,-1006.8,0.00013698,2]
[353035824,1739503832706,-500.0,0.00013698,2]
[353035825,1739503832716,-272.55,0.00013698,2]
[353035826,1739503832726,-500.0,0.00013698,2]
[353035827,1739503832736,-500.0,0.00013698,2]
[353035828,1739503832747,-298.031151,0.00013699,2]
[353035829,1739503832756,-647.96326,0.00013699,2]
[353035830,1739503832767,-101.81506312,0.0001378,2]
[353035831,1739503832780,-398.18493688,0.0001378,2]
[353035832,1739503832790,-217.81506312,0.0001378,2]
[353035857,1739503839937,-282.18493688,0.0001378,2]
[353035858,1739503839946,-500.0,0.0001378,2]
[353035859,1739503839956,-500.0,0.0001378,2]
[353035860,1739503839965,-500.0,0.0001378,2]
[353035861,1739503839975,-500.0,0.0001378,2]
[353035862,1739503839984,-2143.12,0.0001378,2]
[353035863,1739503839993,-500.0,0.0001378,2]
[353035864,1739503840006,-500.0,0.0001378,2]
[353035865,1739503840017,-502.63986998,0.0001378,2]
[353035866,1739503840026,-500.0,0.0001378,2]
[353035867,1739503840036,-1032.44,0.0001378,2]
[353035868,1739503840046,-500.0,0.0001378,2]
[353035869,1739503840055,-4206.49,0.0001378,2]
[353035870,1739503840064,-1006.8,0.0001378,2]
[353035871,1739503840073,-500.0,0.0001378,2]
[353035872,1739503840086,-500.0,0.00013863,2]
[353035873,1739503840095,-500.0,0.00013863,2]
[353035874,1739503840105,-500.0,0.00013863,2]
[353035875,1739503840114,-500.0,0.00013863,2]
[353035876,1739503840123,-500.0,0.00013863,2]
[353035877,1739503840132,-500.0,0.00013863,2]
[353035878,1739503840142,-2143.12,0.00013863,2]
[353035879,1739503840153,-500.0,0.00013863,2]
[353035880,1739503840162,-500.0,0.00013863,2]
[353035881,1739503840171,-500.0,0.00013863,2]
[353035882,1739503840180,-1032.44,0.00013863,2]
[353035883,1739503840192,-500.0,0.00013863,2]
[353035884,1739503840202,-4206.49,0.00013863,2]
[353035885,1739503840212,-1006.8,0.00013863,2]
[353035886,1739503840223,-500.0,0.00013863,2]
[353035887,1739503840233,-500.0,0.00013945,2]
[353035888,1739503840243,-500.0,0.00013945,2]
[353035889,1739503840253,-500.0,0.00013945,2]
[353035890,1739503840262,-500.0,0.00013945,2]
[353035891,1739503840272,-500.0,0.00013945,2]
[353035892,1739503840282,-500.0,0.00013945,2]
[353035893,1739503840293,-2143.12,0.00013945,2]
[353035894,1739503840303,-500.0,0.00013945,2]
[353035895,1739503840313,-500.0,0.00013945,2]
[353035896,1739503840324,-500.0,0.00013945,2]
[353035897,1739503840333,-1032.44,0.00013945,2]
[353035898,1739503840343,-500.0,0.00013945,2]
[353035899,1739503840352,-4206.49,0.00013945,2]
[353035900,1739503840362,-1006.8,0.00013945,2]
[353035901,1739503840371,-500.0,0.00013945,2]
[353035902,1739503840381,-436.38997198,0.00013998,2]
[353035903,1739503840392,-500.0,0.00014027,2]
[353035904,1739503840405,-500.0,0.00014027,2]
[353035905,1739503840420,-500.0,0.00014027,2]
[353035906,1739503840430,-500.0,0.00014027,2]
[353035907,1739503840441,-500.0,0.00014027,2]
[353035908,1739503840451,-500.0,0.00014027,2]
[353035909,1739503840459,-527.29153458,0.00014027,2]
[353035915,1739503842850,-1615.82846542,0.00014027,2]
[353035916,1739503842860,-500.0,0.00014027,2]
[353035917,1739503842871,-500.0,0.00014027,2]
[353035918,1739503842881,-500.0,0.00014027,2]
[353035919,1739503842891,-1032.44,0.00014027,2]
[353035920,1739503842900,-500.0,0.00014027,2]
[353035921,1739503842910,-4206.49,0.00014027,2]
[353035922,1739503842921,-1006.8,0.00014027,2]
[353035923,1739503842930,-500.0,0.00014027,2]
[353035924,1739503842940,-600.0,0.00014089,2]
[353035925,1739503842950,-13272.15463196,0.00014097,2]
[353035926,1739503842960,-500.0,0.00014106,2]
[353035927,1739503842971,-500.0,0.00014109,2]
[353035928,1739503842982,-500.0,0.00014109,2]
[353035929,1739503842992,-500.0,0.00014109,2]
[353035930,1739503843003,-500.0,0.00014109,2]
[353035931,1739503843015,-500.0,0.00014109,2]
[353035932,1739503843024,-500.0,0.00014109,2]
[353035933,1739503843034,-2143.12,0.00014109,2]
[353035934,1739503843042,-500.0,0.00014109,2]
[353035935,1739503843053,-500.0,0.00014109,2]
[353035936,1739503843062,-500.0,0.00014109,2]
[353035937,1739503843072,-1032.44,0.00014109,2]
[353035938,1739503843081,-500.0,0.00014109,2]
[353035939,1739503843091,-4206.49,0.00014109,2]
[353035940,1739503843101,-1006.8,0.00014109,2]
[353035942,1739503843111,-500.0,0.00014109,2]
[353035943,1739503843121,-500.0,0.00014191,2]
[353035944,1739503843131,-500.0,0.00014191,2]
[353035945,1739503843141,-500.0,0.00014191,2]
[353035946,1739503843151,-500.0,0.00014191,2]
[353035947,1739503843161,-500.0,0.00014191,2]
[353035948,1739503843170,-500.0,0.00014191,2]
[353035949,1739503843180,-2143.12,0.00014191,2]
[353035950,1739503843189,-500.0,0.00014191,2]
[353035951,1739503843199,-500.0,0.00014191,2]
[353035952,1739503843208,-500.0,0.00014191,2]
[353035953,1739503843218,-1032.44,0.00014191,2]
[353035954,1739503843228,-500.0,0.00014191,2]
[353035955,1739503843238,-4206.49,0.00014191,2]
[353035956,1739503843247,-1006.8,0.00014191,2]
[353035957,1739503843257,-500.0,0.00014191,2]
[353035958,1739503843267,-383.999,0.00014199,2]
[353035959,1739503843278,-500.0,0.00014273,2]
[353035960,1739503843287,-500.0,0.00014273,2]
[353035961,1739503843297,-417.87797668,0.00014273,2]
[353035962,1739503843307,-500.0,0.00014273,2]
[353035963,1739503843317,-500.0,0.00014273,2]
[353035964,1739503843326,-500.0,0.00014273,2]
[353035965,1739503843336,-2143.12,0.00014273,2]
[353035966,1739503843346,-57.19427913,0.00014273,2]
[353035967,1739503843358,-442.80572087,0.00014273,2]
[353035968,1739503843368,-500.0,0.00014273,2]
[353035969,1739503843377,-500.0,0.00014273,2]
[353035970,1739503843387,-877.64463609,0.00014273,2]
[353035971,1739503843399,-154.79536391,0.00014273,2]
[353035972,1739503843409,-500.0,0.00014273,2]
[353035973,1739503843418,-1980.0627463,0.00014273,2]
[353035974,1739503843430,-2226.4272537,0.00014273,2]
[353035975,1739503843439,-1006.8,0.00014273,2]
[353035976,1739503843449,-500.0,0.00014273,2]
[353035977,1739503843458,-396.0,0.00014335,2]
[353035978,1739503843468,-1970.0,0.00014335,2]
[353035979,1739503843478,-538.0,0.00014335,2]
[353035980,1739503843487,-167.4762915,0.00014354,2]
[353035981,1739503843497,-500.0,0.00014356,2]
[353035982,1739503843508,-231.77612253,0.00014356,2]
[353035983,1739503843517,-500.0,0.00014356,2]
[353035984,1739503843527,-500.0,0.00014356,2]
[353035985,1739503843537,-500.0,0.00014356,2]
[353035986,1739503843547,-2143.12,0.00014356,2]
[353035987,1739503843556,-500.0,0.00014356,2]
[353035988,1739503843566,-500.0,0.00014356,2]
[353035989,1739503843576,-500.0,0.00014356,2]
[353035990,1739503843586,-1032.44,0.00014356,2]
[353035991,1739503843596,-500.0,0.00014356,2]
[353035992,1739503843605,-4206.49,0.00014356,2]
[353035993,1739503843615,-1006.8,0.00014356,2]
[353035994,1739503843625,-500.0,0.00014356,2]
[353035995,1739503843635,-436.38997198,0.00014399,2]
[353035996,1739503843644,-357.0,0.000144,5]
[353035997,1739503843654,-622.0,0.000144,2]
[353035998,1739503843665,-5749.66421366,0.000144,2]
[353035999,1739503843677,-4602.71850012,0.000144,2]
[353036000,1739503843687,-500.0,0.00014438,2]
[353036001,1739503843698,-500.0,0.00014438,2]
[353036002,1739503843708,-500.0,0.00014438,2]
[353036003,1739503843718,-500.0,0.00014438,2]
[353036004,1739503843727,-2143.12,0.00014438,2]
[353036005,1739503843736,-500.0,0.00014438,2]
[353036006,1739503843746,-500.0,0.00014438,2]
[353036007,1739503843757,-500.0,0.00014438,2]
[353036008,1739503843767,-980.63356573,0.00014438,2]
[353036015,1739503845977,-51.80643427,0.00014438,2]
[353036016,1739503845987,-500.0,0.00014438,2]
[353036017,1739503845997,-4206.49,0.00014438,2]
[353036018,1739503846011,-1006.8,0.00014438,2]
[353036019,1739503846020,-294.10802973,0.00014438,2]
[353036021,1739504515520,1300.0,0.00012,30]
[353036022,1739504515815,1300.0,0.00012,30]
[353036023,1739504796170,-162.60756838,0.00010685,2]
[353036047,1739505032082,-107.05894762,0.00010685,2]
[353036048,1739505032093,-159.19828271,0.00012328,4]
[353036049,1739505032103,-501.5972644,0.00013698,2]
[353036050,1739505032113,-501.25261264,0.00013698,2]
[353036051,1739505032124,-501.44485672,0.00013698,2]
[353036052,1739505032134,-501.8936367,0.00013698,2]
[353036053,1739505032145,-238.42492,0.00013699,2]
[353036054,1739505032155,-323.98163,0.00013699,2]
[353036055,1739505032164,-272.74373254,0.0001376,2]
[353036056,1739505032174,-210.48857037,0.00013843,2]
[353036057,1739505032183,-503.46543441,0.00013859,2]
[353036058,1739505032193,-509.82680434,0.00013859,2]
[353036059,1739505032203,-500.0,0.00013859,2]
[353036060,1739505032213,-507.66210569,0.00013859,2]
[353036061,1739505032222,-503.21310985,0.00013859,2]
[353036062,1739505032233,-502.79069041,0.00013859,2]
[353036063,1739505032243,-500.0,0.00013859,2]
[353036064,1739505032252,-500.0,0.00013859,2]
[353036065,1739505032262,-500.0,0.00013859,2]
[353036066,1739505032271,-500.0,0.00013859,2]
[353036067,1739505032281,-500.0,0.00013859,2]
[353036068,1739505032290,-500.0,0.00013859,2]
[353036069,1739505032299,-500.0,0.00013859,2]
[353036071,1739505032308,-501.19203872,0.00013859,2]
[353036073,1739505032320,-751.73,0.00013859,2]
[353036074,1739505032330,-601.16877411,0.00013859,2]
[353036075,1739505032339,-500.0,0.00013859,2]
[353036076,1739505032349,-500.0,0.00013859,2]
[353036077,1739505032358,-501.75633481,0.0001386,2]
[353036078,1739505032368,-504.41752938,0.0001386,2]
[353036079,1739505032380,-501.40481092,0.0001386,2]
[353036080,1739505032391,-544.45063413,0.0001386,2]
[353036081,1739505032400,-500.0,0.0001386,2]
[353036082,1739505032410,-500.0,0.0001386,2]
[353036083,1739505032420,-501.56310699,0.0001386,2]
[353036084,1739505032430,-504.04533624,0.0001386,2]
[353036085,1739505032440,-501.21610207,0.0001386,2]
[353036086,1739505032451,-505.39028804,0.0001386,2]
[353036087,1739505032461,-505.85698636,0.0001386,2]
[353036088,1739505032472,-386.98733038,0.0001386,2]
[353036089,1739505032481,-501.11731586,0.0001386,2]
[353036090,1739505032491,-500.0,0.0001386,2]
[353036091,1739505032500,-506.42931733,0.0001386,2]
[353036092,1739505032510,-500.0,0.0001386,2]
[353036093,1739505032520,-500.90194156,0.0001386,2]
[353036094,1739505032530,-500.0,0.0001386,2]
[353036095,1739505032544,-502.08219845,0.0001386,2]
[353036096,1739505032554,-501.38366462,0.0001386,2]
[353036097,1739505032564,-500.70451819,0.0001386,2]
[353036098,1739505032574,-501.65704991,0.0001386,2]
[353036099,1739505032583,-500.0,0.0001386,2]
[353036100,1739505032593,-501.98773656,0.0001386,2]
[353036101,1739505032602,-502.83078442,0.0001386,2]
[353036102,1739505032612,-500.0,0.0001386,2]
[353036103,1739505032621,-502.00945838,0.0001386,2]
[353036104,1739505032631,-502.08870888,0.0001386,2]
[353036105,1739505032640,-501.75186166,0.0001386,2]
[353036106,1739505032650,-501.67103905,0.0001386,2]
[353036107,1739505032659,-501.84005522,0.0001386,2]
[353036108,1739505032669,-502.96131814,0.0001386,2]
[353036109,1739505032678,-500.0,0.0001386,2]
[353036110,1739505032688,-504.92463108,0.0001386,2]
[353036111,1739505032698,-501.46974578,0.0001386,2]
[353036112,1739505032707,-500.0,0.0001386,2]
[353036113,1739505032717,-502.67082964,0.0001386,2]
[353036114,1739505032726,-500.0,0.0001386,2]
[353036115,1739505032735,-500.0,0.0001386,2]
[353036116,1739505032745,-500.97934267,0.0001386,2]
[353036117,1739505032755,-502.75157761,0.0001386,2]
[353036118,1739505032765,-500.68837768,0.0001386,2]
[353036119,1739505032774,-501.89260489,0.0001386,2]
[353036120,1739505032784,-500.0,0.0001386,2]
[353036121,1739505032794,-502.94417292,0.0001386,2]
[353036122,1739505032804,-500.0,0.0001386,2]
[353036123,1739505032813,-502.3141565,0.0001386,2]
[353036124,1739505032824,-505.53570753,0.0001386,2]
[353036125,1739505032833,-500.0,0.0001386,2]
[353036126,1739505032843,-501.2657162,0.0001386,2]
[353036127,1739505032852,-500.0,0.0001386,2]
[353036128,1739505032863,-504.92166025,0.0001386,2]
[353036129,1739505032872,-500.24146066,0.0001386,2]
[353036130,1739505032881,-500.0,0.0001386,2]
[353036131,1739505032891,-500.0,0.0001386,2]
[353036132,1739505032900,-504.1882882,0.0001386,2]
[353036133,1739505032912,-500.0,0.0001386,2]
[353036134,1739505032921,-500.8427245,0.0001386,2]
[353036135,1739505032932,-500.0,0.0001386,2]
[353036136,1739505032942,-500.0,0.0001386,2]
[353036137,1739505032952,-500.75462852,0.0001386,2]
[353036138,1739505032962,-500.0,0.0001386,2]
[353036139,1739505032972,-500.38329333,0.0001386,2]
[353036140,1739505032981,-503.40830056,0.0001386,2]
[353036141,1739505032991,-259.25036401,0.0001386,2]
[353036142,1739505033000,-500.5691968,0.0001386,2]
[353036143,1739505033010,-500.0,0.0001386,2]
[353036144,1739505033019,-502.51615525,0.0001386,2]
[353036145,1739505033028,-500.0,0.0001386,2]
[353036146,1739505033038,-500.50261886,0.0001386,2]
[353036147,1739505033048,-500.0,0.0001386,2]
[353036148,1739505033058,-500.0,0.0001386,2]
[353036149,1739505033067,-501.02075037,0.0001386,2]
[353036150,1739505033077,-500.65842093,0.0001386,2]
[353036151,1739505033086,-500.4922879,0.0001386,2]
[353036152,1739505033096,-500.0,0.0001386,2]
[353036153,1739505033106,-500.0,0.0001386,2]
[353036154,1739505033116,-500.5619243,0.0001386,2]
[353036155,1739505033125,-3902.11,0.0001386,2]
[353036156,1739505033136,-500.0,0.0001386,2]
[353036157,1739505033146,-501.05550011,0.0001386,2]
[353036158,1739505033155,-500.0,0.0001386,2]
[353036159,1739505033165,-500.51293436,0.0001386,2]
[353036160,1739505033175,-500.0,0.0001386,2]
[353036161,1739505033184,-500.0,0.0001386,2]
[353036162,1739505033193,-500.0,0.0001386,2]
[353036163,1739505033203,-500.4500796,0.0001386,2]
[353036164,1739505033212,-500.0,0.0001386,2]
[353036165,1739505033221,-502.14886336,0.0001386,2]
[353036166,1739505033230,-500.0,0.0001386,2]
[353036167,1739505033240,-500.68475341,0.0001386,2]
[353036168,1739505033249,-500.0,0.0001386,2]
[353036169,1739505033258,-501.44446062,0.0001386,2]
[353036170,1739505033268,-603.04401491,0.0001386,2]
[353036171,1739505033278,-500.0,0.0001386,2]
[353036172,1739505033287,-501.58338425,0.0001386,2]
[353036173,1739505033297,-500.0,0.0001386,2]
[353036174,1739505033307,-500.0,0.0001386,2]
[353036175,1739505033317,-503.12617222,0.0001386,2]
[353036176,1739505033326,-500.51304762,0.0001386,2]
[353036177,1739505033336,-500.0,0.0001386,2]
[353036178,1739505033345,-500.0,0.0001386,2]
[353036179,1739505033354,-500.0,0.0001386,2]
[353036180,1739505033364,-500.0,0.0001386,2]
[353036181,1739505033374,-570.09133544,0.0001386,2]
[353036182,1739505033387,-503.06488664,0.0001386,2]
[353036183,1739505033397,-502.09704632,0.0001386,2]
[353036184,1739505033407,-500.0,0.0001386,2]
[353036185,1739505033416,-500.0,0.0001386,2]
[353036186,1739505033426,-500.0,0.0001386,2]
[353036187,1739505033436,-500.0,0.0001386,2]
[353036188,1739505033446,-501.37967933,0.0001386,2]
[353036189,1739505033455,-501.64155412,0.0001386,2]
[353036190,1739505033466,-500.0,0.0001386,2]
[353036191,1739505033476,-501.62921188,0.0001386,2]
[353036192,1739505033485,-500.54939272,0.0001386,2]
[353036193,1739505033494,-501.66934799,0.0001386,2]
[353036194,1739505033503,-500.0,0.0001386,2]
[353036195,1739505033513,-500.0,0.0001386,2]
[353036196,1739505033522,-500.0,0.0001386,2]
[353036197,1739505033532,-500.0,0.0001386,2]
[353036198,1739505033542,-500.0,0.0001386,2]
[353036199,1739505033552,-500.0,0.0001386,2]
[353036200,1739505033562,-500.0,0.0001386,2]
[353036201,1739505033573,-504.22023709,0.0001386,2]
[353036202,1739505033583,-505.19886801,0.0001386,2]
[353036203,1739505033592,-502.0182424,0.0001386,2]
[353036204,1739505033601,-500.0,0.0001386,2]
[353036205,1739505033611,-500.0,0.0001386,2]
[353036206,1739505033621,-500.0,0.0001386,2]
[353036207,1739505033631,-500.0,0.0001386,2]
[353036208,1739505033640,-500.0,0.0001386,2]
[353036209,1739505033650,-501.25130679,0.0001386,2]
[353036210,1739505033659,-500.0,0.0001386,2]
[353036211,1739505033669,-504.21919203,0.0001386,2]
[353036212,1739505033678,-505.01327821,0.0001386,2]
[353036213,1739505033688,-500.0,0.0001386,2]
[353036214,1739505033698,-500.0,0.0001386,2]
[353036215,1739505033707,-503.83017747,0.0001386,2]
[353036216,1739505033716,-500.0,0.0001386,2]
[353036217,1739505033726,-502.37653279,0.0001386,2]
[353036218,1739505033735,-503.0702618,0.0001386,2]
[353036219,1739505033745,-1489.4,0.0001386,2]
[353036220,1739505033755,-539.54638667,0.0001386,2]
[353036221,1739505033764,-501.29688917,0.0001386,2]
[353036222,1739505033773,-502.75524866,0.0001386,2]
[353036223,1739505033783,-500.0,0.0001386,2]
[353036224,1739505033792,-500.0,0.0001386,2]
[353036225,1739505033802,-500.0,0.0001386,2]
[353036226,1739505033811,-483.34941994,0.0001386,2]
[353036227,1739505033820,-500.0,0.0001386,2]
[353036228,1739505033830,-502.63738941,0.0001386,2]
[353036229,1739505033839,-500.0,0.0001386,2]
[353036230,1739505033849,-500.0,0.0001386,2]
[353036231,1739505033859,-500.0,0.0001386,2]
[353036232,1739505033868,-506.52008991,0.0001386,2]
[353036233,1739505033878,-503.97831776,0.0001386,2]
[353036234,1739505033887,-500.0,0.0001386,2]
[353036235,1739505033896,-500.0,0.0001386,2]
[353036236,1739505033906,-501.22525037,0.0001386,2]
[353036237,1739505033916,-500.0,0.0001386,2]
[353036238,1739505034050,-542.43,0.0001386,2]
[353036239,1739505034060,-501.43851334,0.0001386,2]
[353036240,1739505034070,-500.0,0.0001386,2]
[353036241,1739505034080,-500.0,0.0001386,2]
[353036242,1739505034090,-501.01526209,0.0001386,2]
[353036243,1739505034100,-2695.51,0.0001386,2]
[353036244,1739505034109,-500.0,0.0001386,2]
[353036245,1739505034119,-500.63090727,0.0001386,2]
[353036246,1739505034128,-500.0,0.0001386,2]
[353036247,1739505034137,-500.0,0.0001386,2]
[353036248,1739505034147,-693.62,0.0001386,2]
[353036249,1739505034156,-500.0,0.0001386,2]
[353036250,1739505034165,-501.55813502,0.0001386,2]
[353036251,1739505034175,-500.0,0.0001386,2]
[353036252,1739505034184,-500.0,0.0001386,2]
[353036253,1739505034193,-502.79603949,0.0001386,2]
[353036254,1739505034203,-501.97371534,0.0001386,2]
[353036255,1739505034212,-504.32609583,0.0001386,2]
[353036256,1739505034222,-500.0,0.0001386,2]
[353036257,1739505034231,-500.0,0.0001386,2]
[353036258,1739505034240,-500.0,0.00013861,2]
[353036259,1739505034250,-500.0,0.00013861,2]
[353036260,1739505034259,-506.50288878,0.00013861,2]
[353036261,1739505034269,-503.37966759,0.00013861,2]
[353036262,1739505034279,-500.0,0.00013861,2]
[353036263,1739505034288,-500.0,0.00013861,2]
[353036264,1739505034300,-500.0,0.00013861,2]
[353036265,1739505034310,-500.0,0.00013861,2]
[353036266,1739505034323,-500.0,0.00013861,2]
[353036267,1739505034332,-500.0,0.00013861,2]
[353036268,1739505034341,-500.0,0.00013861,2]
[353036269,1739505034350,-500.0,0.00013861,2]
[353036270,1739505034360,-501.61329571,0.00013861,2]
[353036271,1739505034370,-500.0,0.00013861,2]
[353036272,1739505034383,-500.0,0.00013861,2]
[353036273,1739505034392,-501.2881375,0.00013861,2]
[353036274,1739505034402,-504.9890028,0.00013861,2]
[353036275,1739505034411,-500.0,0.00013861,2]
[353036276,1739505034422,-500.0,0.00013861,2]
[353036277,1739505034431,-500.0,0.00013861,2]
[353036278,1739505034441,-500.0,0.00013861,2]
[353036279,1739505034451,-500.0,0.00013861,2]
[353036280,1739505034461,-502.38877084,0.00013861,2]
[353036281,1739505034471,-500.0,0.00013861,2]
[353036282,1739505034480,-500.0,0.00013861,2]
[353036283,1739505034490,-500.0,0.00013861,2]
[353036284,1739505034499,-500.0,0.00013861,2]
[353036285,1739505034509,-501.98324468,0.00013861,2]
[353036286,1739505034518,-500.0,0.00013861,2]
[353036287,1739505034528,-501.20287415,0.00013861,2]
[353036288,1739505034537,-500.80226055,0.00013861,2]
[353036289,1739505034548,-500.0,0.00013861,2]
[353036290,1739505034557,-500.0,0.00013861,2]
[353036291,1739505034566,-500.0,0.00013861,2]
[353036292,1739505034579,-356.40171536,0.00013861,2]
[353036293,1739505034588,-501.17703306,0.00013861,2]
[353036294,1739505034598,-500.0,0.00013861,2]
[353036295,1739505034607,-512.97843909,0.00013861,2]
[353036296,1739505034616,-500.0,0.00013861,2]
[353036297,1739505034626,-503.23505757,0.00013861,2]
[353036298,1739505034635,-502.97314579,0.00013861,2]
[353036299,1739505034646,-502.19735926,0.00013861,2]
[353036300,1739505034657,-550.35107339,0.00013861,2]
[353036301,1739505034667,-502.25390199,0.00013861,2]
[353036302,1739505034676,-500.0,0.00013861,2]
[353036303,1739505034685,-500.0,0.00013861,2]
[353036304,1739505034694,-500.0,0.00013861,2]
[353036305,1739505034704,-520.16806285,0.00013861,2]
[353036306,1739505034714,-500.0,0.00013861,2]
[353036307,1739505034724,-500.96235909,0.00013861,2]
[353036308,1739505034734,-500.0,0.00013861,2]
[353036309,1739505034743,-502.90028345,0.00013861,2]
[353036310,1739505034753,-500.0,0.00013861,2]
[353036311,1739505034762,-502.85180875,0.00013861,2]
[353036312,1739505034772,-500.0,0.00013861,2]
[353036313,1739505034782,-501.08916711,0.00013861,2]
[353036314,1739505034791,-500.0,0.00013861,2]
[353036315,1739505034801,-500.0,0.00013861,2]
[353036316,1739505034811,-501.30389425,0.00013861,2]
[353036317,1739505034823,-502.23802028,0.00013861,2]
[353036318,1739505034833,-480.79418732,0.00013861,2]
[353036319,1739505034842,-502.3325243,0.00013861,2]
[353036320,1739505034852,-500.0,0.00013861,2]
[353036321,1739505034861,-501.55692149,0.00013861,2]
[353036322,1739505034870,-502.26955789,0.00013861,2]
[353036323,1739505034880,-500.0,0.00013861,2]
[353036324,1739505034889,-500.0,0.00013861,2]
[353036325,1739505034899,-501.3758471,0.00013861,2]
[353036326,1739505034909,-501.91202216,0.00013861,2]
[353036327,1739505034921,-500.0,0.00013861,2]
[353036328,1739505034930,-500.0,0.00013861,2]
[353036329,1739505034939,-500.0,0.00013861,2]
[353036330,1739505034949,-500.0,0.00013861,2]
[353036331,1739505034958,-500.86480427,0.00013861,2]
[353036332,1739505034968,-503.32985974,0.00013861,2]
[353036333,1739505034978,-501.73076328,0.00013861,2]
[353036334,1739505034987,-500.0,0.00013861,2]
[353036335,1739505034996,-503.16151317,0.00013861,2]
[353036336,1739505035006,-502.61046119,0.00013861,2]
[353036337,1739505035016,-501.45137045,0.00013861,2]
[353036338,1739505035025,-505.55698399,0.00013861,2]
[353036339,1739505035035,-505.53542499,0.00013861,2]
[353036340,1739505035044,-501.12323738,0.00013861,2]
[353036341,1739505035054,-502.56729803,0.00013861,2]
[353036342,1739505035063,-542.30649184,0.00013861,2]
[353036343,1739505035083,-503.59636291,0.00013861,2]
[353036344,1739505035094,-504.01842394,0.00013861,2]
[353036345,1739505035104,-500.43130539,0.00013861,2]
[353036346,1739505035114,-503.29351089,0.00013861,2]
[353036347,1739505035124,-502.67644077,0.00013861,2]
[353036348,1739505035134,-503.10556126,0.00013861,2]
[353036349,1739505035144,-529.58384944,0.00013861,2]
[353036350,1739505035154,-500.75688052,0.00013861,2]
[353036351,1739505035164,-502.41324724,0.00013861,2]
[353036352,1739505035174,-503.39783584,0.00013861,2]
[353036353,1739505035184,-500.0,0.00013861,2]
[353036354,1739505035194,-500.0,0.00013861,2]
[353036355,1739505035204,-501.25478471,0.00013861,2]
[353036356,1739505035214,-502.14182537,0.00013861,2]
[353036357,1739505035224,-500.23340223,0.00013861,2]
[353036358,1739505035235,-500.0,0.00013861,2]
[353036359,1739505035244,-522.35211814,0.00013861,2]
[353036360,1739505035254,-500.76566898,0.00013861,2]
[353036361,1739505035264,-503.87724345,0.00013861,2]
[353036362,1739505035274,-3902.11,0.00013861,2]
[353036363,1739505035285,-502.03002597,0.00013861,2]
[353036364,1739505035295,-500.0,0.00013861,2]
[353036365,1739505035306,-500.89807569,0.00013861,2]
[353036366,1739505035315,-502.76075003,0.00013861,2]
[353036367,1739505035326,-500.0,0.00013861,2]
[353036368,1739505035335,-500.92966199,0.00013861,2]
[353036369,1739505035345,-503.09624482,0.00013861,2]
[353036370,1739505035356,-500.0,0.00013861,2]
[353036371,1739505035367,-503.82271967,0.00013861,2]